fUSD/lending_fUSD_20240815
["ID","MTS","AMOUNT","RATE_DAILY","PERIOD"]
[334981004,1723710664865,-1102.87,0.00024382,7]
[334981005,1723710664874,-1102.87,0.00024382,7]
[334981006,1723710664884,-1102.87,0.00024382,7]
[334981007,1723710664893,-1102.87,0.00024382,7]
[334981008,1723710664902,-1102.87,0.00024382,7]
[334981009,1723710664913,-500.0,0.00024382,7]
[334981010,1723710664922,-500.0,0.00024382,7]
[334981011,1723710664931,-500.0,0.00024382,7]
[334981012,1723710664941,-500.0,0.00024382,7]
[334981013,1723710664952,-513.24016542,0.00024382,7]
[334981014,1723710664962,-500.0,0.00024382,7]
[334981015,1723710664973,-415.90137243,0.00024382,7]
[334981016,1723710664982,-500.0,0.00024382,7]
[334981017,1723710664992,-500.0,0.00024382,7]
[334981018,1723710665002,-500.0,0.00024382,7]
[334981019,1723710665012,-500.0,0.00024382,7]
[334981020,1723710665022,-500.0,0.00024382,7]
[334981021,1723710665032,-500.0,0.00024382,7]
[334981022,1723710665042,-500.0,0.00024382,7]
[334981023,1723710665053,-500.0,0.00024382,7]
[334981024,1723710665063,-1501.21,0.00024382,7]
[334981025,1723710665072,-600.06,0.00024382,7]
[334981026,1723710665081,-500.0,0.00024382,7]
[334981027,1723710665091,-1501.21,0.00024382,7]
[334981028,1723710665101,-500.0,0.00024382,7]
[334981029,1723710665110,-1501.21,0.00024382,7]
[334981030,1723710665207,-500.0,0.00024382,7]
[334981031,1723710665220,-1501.21,0.00024382,7]
[334981032,1723710665230,-1501.21,0.00024382,7]
[334981033,1723710665241,-1501.21,0.00024382,7]
[334981034,1723710665251,-1501.21,0.00024382,7]
[334981035,1723710665260,-1501.21,0.00024382,7]
[334981036,1723710665270,-1501.21,0.00024382,7]
[334981037,1723710665280,-1501.21,0.00024382,7]
[334981038,1723710665289,-1501.24,0.00024382,7]
[334981039,1723710665298,-173.2,0.00024382,7]
[334981040,1723710665309,-500.0,0.00024382,7]
[334981041,1723710665318,-2263.77,0.00024382,7]
[334981042,1723710665328,-2263.77,0.00024382,7]
[334981043,1723710665338,-2263.77,0.00024382,7]
[334981044,1723710665349,-2263.77,0.00024382,7]
[334981045,1723710665358,-2263.77,0.00024382,7]
[334981046,1723710665368,-2263.77,0.00024382,7]
[334981047,1723710665378,-2263.77,0.00024382,7]
[334981048,1723710665388,-2263.77,0.00024382,7]
[334981049,1723710665398,-2263.77,0.00024382,7]
[334981050,1723710665408,-500.0,0.00024382,7]
[334981051,1723710665420,-2263.77,0.00024382,7]
[334981052,1723710665429,-2271.82,0.00024382,7]
[334981053,1723710665439,-2263.90147661,0.00024382,7]
[334981054,1723710665449,-2271.82,0.00024382,7]
[334981055,1723710665459,-2271.82,0.00024382,7]
[334981056,1723710665469,-2271.82,0.00024382,7]
[334981057,1723710665480,-464.02,0.00024382,7]
[334981058,1723710665490,-2271.82,0.00024382,7]
[334981059,1723710665499,-500.0,0.00024382,7]
[334981060,1723710665510,-2271.82,0.00024382,7]
[334981061,1723710665519,-2271.82,0.00024382,7]
[334981062,1723710665529,-500.0,0.00024382,7]
[334981063,1723710665539,-2271.82,0.00024382,7]
[334981064,1723710665549,-515.65106949,0.00024382,7]
[334981065,1723710665558,-500.0,0.00024382,7]
[334981066,1723710665567,-500.0,0.00024382,7]
[334981067,1723710665576,-500.0,0.00024382,7]
[334981068,1723710665587,-500.0,0.00024382,7]
[334981069,1723710665600,-500.0,0.00024382,7]
[334981070,1723710665609,-500.0,0.00024382,7]
[334981071,1723710665619,-500.0,0.00024382,7]
[334981072,1723710665629,-500.0,0.00024382,7]
[334981073,1723710665640,-500.0,0.00024382,7]
[334981074,1723710665650,-500.0,0.00024382,7]
[334981075,1723710665659,-500.0,0.00024382,7]
[334981076,1723710665671,-500.0,0.00024382,7]
[334981077,1723710665681,-500.0,0.00024382,7]
[334981078,1723710665692,-500.0,0.00024382,7]
[334981079,1723710665703,-500.0,0.00024382,7]
[334981080,1723710665712,-500.0,0.00024382,7]
[334981081,1723710665722,-500.0,0.00024382,7]
[334981082,1723710665731,-500.0,0.00024382,7]
[334981083,1723710665741,-500.0,0.00024382,7]
[334981084,1723710665751,-500.0,0.00024382,7]
[334981085,1723710665760,-500.0,0.00024382,7]
[334981086,1723710665770,-500.0,0.00024382,7]
[334981087,1723710665780,-500.0,0.00024382,7]
[334981088,1723710665789,-500.0,0.00024382,7]
[334981089,1723710665798,-500.0,0.00024382,7]
[334981090,1723710665809,-500.0,0.00024382,7]
[334981091,1723710665819,-500.0,0.00024382,7]
[334981092,1723710665829,-458.59,0.00024382,7]
[334981093,1723710665839,-602.72493005,0.00024382,7]
[334981094,1723710665848,-536.9886361,0.00024382,7]
[334981095,1723710665858,-500.0,0.00024382,7]
[334981096,1723710665869,-500.0,0.00024382,7]
[334981097,1723710665879,-500.0,0.00024382,7]
[334981098,1723710665890,-500.0,0.00024382,7]
[334981099,1723710665899,-500.0,0.00024382,7]
[334981100,1723710665909,-500.0,0.00024382,7]
[334981101,1723710665918,-500.0,0.00024382,7]
[334981102,1723710665928,-500.0,0.00024382,7]
[334981103,1723710665938,-500.0,0.00024382,7]
[334981104,1723710665947,-500.0,0.00024382,7]
[334981105,1723710665957,-500.0,0.00024382,7]
[334981106,1723710665967,-500.0,0.00024382,7]
[334981107,1723710665977,-500.0,0.00024382,7]
[334981108,1723710665986,-500.0,0.00024382,7]
[334981109,1723710665996,-500.0,0.00024382,7]
[334981110,1723710666006,-519.62375696,0.00024382,7]
[334981111,1723710666016,-500.0,0.00024382,7]
[334981112,1723710666025,-500.0,0.00024382,7]
[334981113,1723710666034,-500.0,0.00024382,7]
[334981114,1723710666043,-500.0,0.00024382,7]
[334981115,1723710666052,-500.0,0.00024382,7]
[334981116,1723710666062,-500.0,0.00024382,7]
[334981117,1723710666072,-500.0,0.00024382,7]
[334981118,1723710666082,-488.40956005,0.00024382,7]
[334981119,1723710666091,-202.53,0.00024382,7]
[334981120,1723710666102,-500.0,0.00024382,7]
[334981121,1723710666112,-500.0,0.00024382,7]
[334981122,1723710666121,-500.0,0.00024382,7]
[334981123,1723710666131,-1809.12,0.00024382,7]
[334981124,1723710666141,-1809.12,0.00024382,7]
[334981125,1723710666150,-1809.12,0.00024382,7]
[334981126,1723710666160,-1809.12,0.00024382,7]
[334981127,1723710666172,-305.71,0.00024382,7]
[334981128,1723710666182,-1809.12,0.00024382,7]
[334981129,1723710666192,-1095.89,0.00024382,7]
[334981130,1723710666202,-1095.89,0.00024382,7]
[334981131,1723710666212,-1809.12,0.00024382,7]
[334981132,1723710666221,-1809.12,0.00024382,7]
[334981133,1723710666231,-1809.12,0.00024382,7]
[334981134,1723710666241,-500.0,0.00024382,7]
[334981135,1723710666251,-500.0,0.00024382,7]
[334981136,1723710666260,-526.91320118,0.00024382,7]
[334981137,1723710666270,-500.0,0.00024382,7]
[334981138,1723710666280,-500.0,0.00024382,7]
[334981139,1723710666289,-500.0,0.00024382,7]
[334981140,1723710666299,-530.88725477,0.00024382,7]
[334981141,1723710666309,-500.0,0.00024382,7]
[334981142,1723710666318,-500.0,0.00024382,7]
[334981143,1723710666329,-500.0,0.00024382,7]
[334981144,1723710666339,-500.0,0.00024382,7]
[334981145,1723710666349,-427.63179631,0.00024382,7]
[334981146,1723710666359,-538.94482337,0.00024382,7]
[334981147,1723710666369,-230.08702513,0.00024382,7]
[334981148,1723710666379,-500.0,0.00024382,7]
[334981149,1723710666390,-500.0,0.00024382,7]
[334981150,1723710666400,-500.0,0.00024382,7]
[334981151,1723710666410,-500.0,0.00024382,7]
[334981152,1723710666419,-500.0,0.00024382,7]
[334981153,1723710666429,-500.0,0.00024382,7]
[334981154,1723710666439,-500.0,0.00024382,7]
[334981155,1723710666449,-500.0,0.00024382,7]
[334981156,1723710666460,-500.0,0.00024382,7]
[334981157,1723710666471,-500.0,0.00024382,7]
[334981158,1723710666481,-500.0,0.00024382,7]
[334981159,1723710666491,-277.39698319,0.00024382,7]
[334981160,1723710666501,-626.61,0.00024382,7]
[334981161,1723710666511,-626.61,0.00024382,7]
[334981162,1723710666521,-500.0,0.00024382,7]
[334981163,1723710666531,-513.08322099,0.00024382,7]
[334981164,1723710666541,-857.5,0.00024382,7]
[334981165,1723710666551,-857.5,0.00024382,7]
[334981166,1723710666562,-857.5,0.00024382,7]
[334981167,1723710666572,-857.5,0.00024382,7]
[334981168,1723710666582,-857.5,0.00024382,7]
[334981169,1723710666596,-500.0,0.00024382,7]
[334981170,1723710666606,-857.5,0.00024382,7]
[334981171,1723710666616,-500.0,0.00024382,7]
[334981172,1723710666626,-857.5,0.00024382,7]
[334981173,1723710666638,-588.2,0.00024382,7]
[334981174,1723710666649,-857.5,0.00024382,7]
[334981175,1723710666659,-588.2,0.00024382,7]
[334981176,1723710666755,-588.2,0.00024382,7]
[334981177,1723710666766,-588.2,0.00024382,7]
[334981178,1723710666775,-588.2,0.00024382,7]
[334981179,1723710666785,-500.0,0.00024382,7]
[334981180,1723710666795,-588.2,0.00024382,7]
[334981181,1723710666804,-588.2,0.00024382,7]
[334981182,1723710666814,-588.2,0.00024382,7]
[334981183,1723710666824,-500.0,0.00024382,7]
[334981184,1723710666833,-265.50844244,0.00024382,7]
[334981185,1723710666843,-500.0,0.00024382,7]
[334981186,1723710666853,-500.0,0.00024382,7]
[334981187,1723710666863,-503.79,0.00024382,7]
[334981188,1723710666873,-503.79,0.00024382,7]
[334981189,1723710666882,-503.79,0.00024382,7]
[334981190,1723710666891,-523.18206462,0.00024382,7]
[334981191,1723710666901,-703.57,0.00024382,7]
[334981192,1723710666911,-503.79,0.00024382,7]
[334981193,1723710666921,-703.57,0.00024382,7]
[334981194,1723710666933,-503.79,0.00024382,7]
[334981195,1723710666943,-703.57,0.00024382,7]
[334981196,1723710666953,-703.57,0.00024382,7]
[334981197,1723710666962,-503.79,0.00024382,7]
[334981198,1723710666971,-703.57,0.00024382,7]
[334981199,1723710666981,-503.79,0.00024382,7]
[334981200,1723710666991,-703.57,0.00024382,7]
[334981201,1723710667000,-500.0,0.00024382,7]
[334981202,1723710667011,-503.79,0.00024382,7]
[334981203,1723710667020,-703.57,0.00024382,7]
[334981204,1723710667030,-703.57,0.00024382,7]
[334981205,1723710667040,-703.57,0.00024382,7]
[334981206,1723710667049,-703.57,0.00024382,7]
[334981207,1723710667058,-500.0,0.00024382,7]
[334981208,1723710667068,-516.66092369,0.00024382,7]
[334981209,1723710667078,-703.59,0.00024382,7]
[334981210,1723710667087,-637.34172068,0.00024382,7]
[334981211,1723710667097,-1092.5,0.00024382,7]
[334981212,1723710667106,-1092.5,0.00024382,7]
[334981213,1723710667115,-1092.5,0.00024382,7]
[334981214,1723710667125,-1092.5,0.00024382,7]
[334981215,1723710667134,-500.0,0.00024382,7]
[334981216,1723710667143,-1092.5,0.00024382,7]
[334981217,1723710667152,-526.39391045,0.00024382,7]
[334981218,1723710667162,-1092.5,0.00024382,7]
[334981219,1723710667173,-1092.5,0.00024382,7]
[334981220,1723710667183,-500.27840937,0.00024383,7]
[334981221,1723710667192,-500.60860532,0.00024383,7]
[334981222,1723710667202,-300.0,0.00024383,7]
[334981223,1723710667211,-510.77079266,0.00024383,7]
[334981224,1723710667223,-507.9561386,0.00024383,7]
[334981225,1723710667233,-502.02556066,0.00024383,7]
[334981226,1723710667242,-508.08303277,0.00024383,7]
[334981227,1723710667252,-509.51895454,0.00024383,7]
[334981228,1723710667261,-504.1524582,0.00024383,7]
[334981229,1723710667270,-508.24529537,0.00024383,7]
[334981230,1723710667280,-500.0,0.00024383,7]
[334981231,1723710667290,-506.92618102,0.00024383,7]
[334981232,1723710667300,-513.96009617,0.00024383,7]
[334981233,1723710667310,-500.35833336,0.00024383,7]
[334981234,1723710667320,-506.7326421,0.00024383,7]
[334981235,1723710667329,-510.35787477,0.00024383,7]
[334981236,1723710667339,-500.0,0.00024383,7]
[334981237,1723710667349,-502.53322594,0.00024383,7]
[334981238,1723710667358,-504.41685669,0.00024383,7]
[334981239,1723710667368,-503.74858197,0.00024383,7]
[334981240,1723710667378,-509.72851317,0.00024383,7]
[334981241,1723710667387,-500.0,0.00024383,7]
[334981242,1723710667397,-502.41404071,0.00024383,7]
[334981243,1723710667407,-515.24616926,0.00024383,7]
[334981244,1723710667417,-503.33660163,0.00024383,7]
[334981245,1723710667426,-504.89507335,0.00024383,7]
[334981246,1723710667435,-506.88935068,0.00024383,7]
[334981247,1723710667445,-502.71058547,0.00024383,7]
[334981248,1723710667454,-500.0,0.00024383,7]
[334981249,1723710667464,-510.02181706,0.00024383,7]
[334981250,1723710667474,-510.76803114,0.00024383,7]
[334981251,1723710667483,-505.32750923,0.00024383,7]
[334981252,1723710667493,-500.0,0.00024383,7]
[334981253,1723710667503,-502.59315457,0.00024383,7]
[334981254,1723710667512,-502.61775566,0.00024383,7]
[334981255,1723710667521,-500.0,0.00024383,7]
[334981256,1723710667531,-500.0,0.00024383,7]
[334981257,1723710667541,-501.38661453,0.00024383,7]
[334981258,1723710667550,-507.16213252,0.00024383,7]
[334981259,1723710667560,-520.46724346,0.00024383,7]
[334981260,1723710667569,-500.0,0.00024383,7]
[334981261,1723710667579,-501.76346256,0.00024383,7]
[334981262,1723710667594,-502.43860067,0.00024383,7]
[334981263,1723710667603,-510.72505222,0.00024383,7]
[334981264,1723710667613,-502.83954802,0.00024383,7]
[334981265,1723710667623,-505.10643858,0.00024383,7]
[334981266,1723710667634,-514.13800685,0.00024383,7]
[334981267,1723710667644,-504.36997147,0.00024383,7]
[334981268,1723710667653,-500.0,0.00024383,7]
[334981269,1723710667664,-511.63792709,0.00024383,7]
[334981270,1723710667677,-504.70398017,0.00024383,7]
[334981271,1723710667687,-515.49383237,0.00024383,7]
[334981272,1723710667696,-500.0,0.00024383,7]
[334981273,1723710667706,-500.0,0.00024383,7]
[334981274,1723710667716,-508.59,0.00024383,7]
[334981275,1723710667725,-502.42366114,0.00024383,7]
[334981276,1723710667735,-512.6284161,0.00024383,7]
[334981277,1723710667744,-503.84316038,0.00024383,7]
[334981278,1723710667753,-503.957174,0.00024383,7]
[334981279,1723710667763,-501.13418621,0.00024383,7]
[334981280,1723710667772,-512.9131477,0.00024383,7]
[334981281,1723710667781,-506.27890485,0.00024383,7]
[334981282,1723710667790,-502.28152599,0.00024383,7]
[334981283,1723710667800,-508.13148806,0.00024383,7]
[334981284,1723710667809,-502.8553811,0.00024383,7]
[334981285,1723710667819,-502.29705118,0.00024383,7]
[334981286,1723710667828,-504.04607348,0.00024383,7]
[334981287,1723710667838,-504.66463061,0.00024383,7]
[334981288,1723710667847,-504.35469619,0.00024383,7]
[334981289,1723710667856,-502.3371959,0.00024383,7]
[334981290,1723710667865,-505.79858837,0.00024383,7]
[334981291,1723710667874,-503.78028163,0.00024383,7]
[334981292,1723710667884,-503.63917659,0.00024383,7]
[334981293,1723710667894,-506.63526021,0.00024383,7]
[334981294,1723710667903,-503.68951949,0.00024383,7]
[334981295,1723710667912,-503.37618618,0.00024383,7]
[334981296,1723710667923,-503.35973938,0.00024383,7]
[334981297,1723710667933,-509.46727685,0.00024383,7]
[334981298,1723710667943,-505.37708395,0.00024383,7]
[334981299,1723710667952,-504.53740294,0.00024383,7]
[334981300,1723710667962,-498.8425554,0.00024383,7]
[334981301,1723710667971,-511.91718624,0.00024383,7]
[334981302,1723710667981,-500.0,0.00024383,7]
[334981303,1723710667990,-500.0,0.00024383,7]
[334981304,1723710668000,-516.56805548,0.00024383,7]
[334981305,1723710668009,-508.748586,0.00024383,7]
[334981306,1723710668019,-501.73810011,0.00024383,7]
[334981307,1723710668028,-501.71402163,0.00024383,7]
[334981308,1723710668037,-501.73899008,0.00024383,7]
[334981309,1723710668046,-505.45798422,0.00024383,7]
[334981310,1723710668056,-501.16021256,0.00024383,7]
[334981311,1723710668151,-502.18783525,0.00024383,7]
[334981312,1723710668161,-501.75227552,0.00024383,2]
[334981313,1723710668171,-613.33585515,0.00024383,7]
[334981314,1723710668188,-502.86381873,0.00024383,7]
[334981315,1723710668197,-502.11259239,0.00024383,7]
[334981316,1723710668207,-151.0,0.00024383,7]
[334981317,1723710668217,-502.55642249,0.00024383,7]
[334981318,1723710668226,-151.0,0.00024383,7]
[334981319,1723710668236,-500.0,0.00024383,7]
[334981320,1723710668245,-523.71783314,0.00024383,7]
[334981321,1723710668255,-507.27708445,0.00024383,7]
[334981322,1723710668264,-500.0,0.00024383,7]
[334981323,1723710668276,-519.14532425,0.00024383,7]
[334981324,1723710668285,-500.0,0.00024383,7]
[334981325,1723710668294,-501.7519273,0.00024383,7]
[334981326,1723710668304,-511.78609555,0.00024383,7]
[334981327,1723710668313,-502.72726228,0.00024383,7]
[334981328,1723710668323,-503.18027073,0.00024383,7]
[334981329,1723710668332,-503.04519258,0.00024383,7]
[334981330,1723710668341,-503.23657686,0.00024383,7]
[334981331,1723710668350,-510.92826771,0.00024383,7]
[334981332,1723710668361,-504.21929897,0.00024383,7]
[334981333,1723710668370,-500.0,0.00024383,2]
[334981334,1723710668379,-500.0,0.00024383,7]
[334981335,1723710668388,-500.0,0.00024383,7]
[334981336,1723710668398,-502.41247842,0.00024383,7]
[334981337,1723710668407,-500.5949457,0.00024383,7]
[334981338,1723710668418,-501.46638768,0.00024383,7]
[334981339,1723710668428,-513.32532752,0.00024383,7]
[334981340,1723710668438,-500.0,0.00024383,7]
[334981341,1723710668448,-500.0,0.00024383,7]
[334981342,1723710668457,-504.96331982,0.00024383,7]
[334981343,1723710668467,-496.61009294,0.00024383,7]
[334981344,1723710668477,-502.5752523,0.00024383,7]
[334981345,1723710668486,-500.0,0.00024383,7]
[334981346,1723710668496,-515.08929052,0.00024383,7]
[334981347,1723710668505,-502.0833198,0.00024383,7]
[334981348,1723710668515,-505.59318065,0.00024383,7]
[334981349,1723710668525,-507.41416905,0.00024383,7]
[334981350,1723710668535,-502.44765171,0.00024383,7]
[334981351,1723710668544,-482.48800424,0.00024383,7]
[334981352,1723710668553,-501.8476073,0.00024383,7]
[334981353,1723710668563,-505.13460959,0.00024383,7]
[334981354,1723710668573,-505.1526504,0.00024383,7]
[334981355,1723710668583,-512.53904078,0.00024383,7]
[334981356,1723710668597,-505.14475858,0.00024383,7]
[334981357,1723710668607,-506.95067333,0.00024383,7]
[334981358,1723710668617,-504.24152176,0.00024383,7]
[334981359,1723710668627,-490.38962887,0.00024383,7]
[334981360,1723710668638,-502.35810861,0.00024383,7]
[334981361,1723710668648,-504.02419746,0.00024383,7]
[334981362,1723710668658,-503.6417986,0.00024383,7]
[334981363,1723710668671,-500.0,0.00024383,7]
[334981364,1723710668681,-503.88866641,0.00024383,7]
[334981365,1723710668690,-502.7834391,0.00024383,7]
[334981366,1723710668700,-500.0,0.00024383,7]
[334981367,1723710668710,-506.7324391,0.00024383,7]
[334981368,1723710668719,-511.67614356,0.00024383,7]
[334981369,1723710668729,-503.19496903,0.00024383,7]
[334981370,1723710668738,-507.21689861,0.00024383,7]
[334981371,1723710668748,-504.99057977,0.00024383,7]
[334981372,1723710668760,-501.47024182,0.00024383,7]
[334981373,1723710668780,-502.87851391,0.00024383,7]
[334981374,1723710668796,-505.74054811,0.00024383,7]
[334981375,1723710668814,-500.0,0.00024383,7]
[334981376,1723710668834,-500.0,0.00024383,7]
[334981377,1723710668851,-545.60389549,0.00024383,7]
[334981378,1723710668868,-506.03048786,0.00024383,7]
[334981379,1723710668886,-511.0663353,0.00024383,7]
[334981380,1723710668899,-505.34931261,0.00024383,7]
[334981381,1723710668915,-512.68401849,0.00024383,7]
[334981382,1723710668943,-634.16214846,0.00024383,7]
[334981383,1723710668962,-501.42958286,0.00024383,7]
[334981384,1723710668975,-507.66782302,0.00024383,7]
[334981385,1723710668993,-500.0,0.00024383,7]
[334981386,1723710669010,-503.62052706,0.00024383,7]
[334981387,1723710669027,-510.22082427,0.00024383,7]
[334981388,1723710669041,-502.25181407,0.00024383,7]
[334981389,1723710669056,-503.36471796,0.00024383,7]
[334981390,1723710669071,-504.24440105,0.00024383,7]
[334981391,1723710669087,-507.71855506,0.00024383,7]
[334981392,1723710669102,-513.24750095,0.00024383,7]
[334981393,1723710669117,-505.87252373,0.00024383,7]
[334981394,1723710669133,-500.55595496,0.00024383,7]
[334981395,1723710669147,-503.12197471,0.00024383,7]
[334981396,1723710669162,-509.18495722,0.00024383,7]
[334981397,1723710669187,-500.64505665,0.00024383,7]
[334981398,1723710669206,-507.42167424,0.00024383,7]
[334981399,1723710669225,-512.28424272,0.00024383,7]
[334981400,1723710669243,-151.0,0.00024383,7]
[334981401,1723710669259,-151.688776,0.00024383,7]
[334981402,1723710669275,-500.0,0.00024383,7]
[334981403,1723710669291,-504.74428292,0.00024383,7]
[334981404,1723710669307,-500.0,0.00024383,7]
[334981405,1723710669323,-501.22396093,0.00024383,7]
[334981406,1723710669338,-500.62427837,0.00024383,7]
[334981407,1723710669352,-504.12885545,0.00024383,7]
[334981408,1723710669368,-500.0,0.00024383,7]
[334981409,1723710669383,-501.76125437,0.00024383,7]
[334981410,1723710669398,-501.07549747,0.00024383,7]
[334981411,1723710669413,-150.83900326,0.00024383,7]
[334981412,1723710669430,-502.98291107,0.00024383,7]
[334981413,1723710669445,-501.60755836,0.00024383,7]
[334981414,1723710669460,-500.0,0.00024383,7]
[334981415,1723710669476,-502.01096318,0.00024383,7]
[334981416,1723710669490,-210.79250906,0.00024383,7]
[334981417,1723710669505,-507.14089152,0.00024383,7]
[334981418,1723710669521,-506.5840816,0.00024383,7]
[334981419,1723710669536,-503.60580251,0.00024383,7]
[334981420,1723710669552,-502.78045376,0.00024383,7]
[334981421,1723710669568,-500.0,0.00024383,7]
[334981422,1723710669584,-510.83724232,0.00024383,7]
[334981423,1723710669604,-506.55983151,0.00024383,7]
[334981424,1723710669618,-500.0,0.00024383,7]
[334981425,1723710669633,-504.20039099,0.00024383,7]
[334981426,1723710669648,-500.0,0.00024383,7]
[334981427,1723710669664,-500.0,0.00024383,7]
[334981428,1723710669682,-500.0,0.00024383,7]
[334981429,1723710669696,-505.02314658,0.00024383,7]
[334981430,1723710669711,-505.87090453,0.00024383,7]
[334981431,1723710669725,-500.0,0.00024383,7]
[334981432,1723710669740,-501.21847187,0.00024383,7]
[334981433,1723710669753,-500.0,0.00024383,7]
[334981434,1723710669768,-505.58176866,0.00024383,7]
[334981435,1723710669895,-500.0,0.00024383,7]
[334981436,1723710669904,-552.66912238,0.00024383,7]
[334981437,1723710669915,-529.82750119,0.00024383,7]
[334981438,1723710669925,-500.0,0.00024383,7]
[334981439,1723710669935,-504.45006638,0.00024383,7]
[334981440,1723710669944,-288.24587861,0.00024383,7]
[334981441,1723710669954,-500.0,0.00024383,7]
[334981442,1723710669963,-500.0,0.00024383,7]
[334981443,1723710669973,-501.48307671,0.00024383,7]
[334981444,1723710669983,-503.42014974,0.00024383,7]
[334981445,1723710669993,-500.0,0.00024383,7]
[334981446,1723710670003,-500.0,0.00024383,7]
[334981447,1723710670013,-500.0,0.00024383,7]
[334981448,1723710670022,-500.0,0.00024383,7]
[334981449,1723710670032,-501.54403552,0.00024383,7]
[334981450,1723710670042,-511.83002005,0.00024383,7]
[334981451,1723710670052,-504.31146095,0.00024383,7]
[334981452,1723710670062,-500.0,0.00024383,7]
[334981453,1723710670072,-506.26068553,0.00024383,7]
[334981454,1723710670083,-500.0,0.00024383,7]
[334981455,1723710670092,-501.01410333,0.00024383,7]
[334981456,1723710670102,-500.0,0.00024383,7]
[334981457,1723710670110,-507.88401342,0.00024383,7]
[334981458,1723710670120,-500.0,0.00024383,7]
[334981459,1723710670129,-511.30522025,0.00024383,7]
[334981460,1723710670139,-500.0,0.00024383,7]
[334981461,1723710670149,-500.0,0.00024383,7]
[334981462,1723710670158,-500.0,0.00024383,7]
[334981463,1723710670169,-501.46027504,0.00024383,7]
[334981464,1723710670179,-500.0,0.00024383,7]
[334981465,1723710670188,-500.0,0.00024383,7]
[334981466,1723710670198,-500.0,0.00024383,7]
[334981467,1723710670208,-500.52429618,0.00024383,7]
[334981468,1723710670219,-502.80694233,0.00024383,7]
[334981469,1723710670229,-503.62278584,0.00024383,7]
[334981470,1723710670239,-500.87301155,0.00024383,7]
[334981471,1723710670249,-500.0,0.00024383,7]
[334981472,1723710670259,-500.0,0.00024383,7]
[334981473,1723710670268,-500.0,0.00024383,7]
[334981474,1723710670278,-509.43231795,0.00024383,7]
[334981475,1723710670288,-506.59904678,0.00024383,7]
[334981476,1723710670298,-506.86254581,0.00024383,7]
[334981477,1723710670307,-500.0,0.00024383,7]
[334981478,1723710670317,-500.0,0.00024383,7]
[334981479,1723710670327,-500.0,0.00024383,7]
[334981480,1723710670336,-508.93326443,0.00024383,7]
[334981481,1723710670347,-1000.0,0.00024383,7]
[334981482,1723710670356,-616.80292955,0.00024383,7]
[334981483,1723710670365,-500.0,0.00024383,7]
[334981484,1723710670375,-1000.0,0.00024383,7]
[334981485,1723710670385,-503.99720791,0.00024383,7]
[334981486,1723710670395,-501.85214144,0.00024383,7]
[334981487,1723710670405,-500.0,0.00024383,7]
[334981488,1723710670416,-500.0,0.00024383,7]
[334981489,1723710670431,-501.7335205,0.00024383,7]
[334981490,1723710670441,-500.0,0.00024383,7]
[334981491,1723710670454,-502.00421223,0.00024383,7]
[334981492,1723710670464,-500.0,0.00024383,7]
[334981493,1723710670474,-501.44227426,0.00024383,7]
[334981494,1723710670485,-500.0,0.00024383,7]
[334981495,1723710670495,-501.50325928,0.00024383,7]
[334981496,1723710670505,-500.0,0.00024383,7]
[334981497,1723710670515,-500.0,0.00024383,7]
[334981498,1723710670526,-500.0,0.00024383,7]
[334981499,1723710670536,-501.54090836,0.00024383,7]
[334981500,1723710670546,-500.0,0.00024383,7]
[334981501,1723710670556,-506.24828227,0.00024383,7]
[334981502,1723710670566,-500.0,0.00024383,7]
[334981503,1723710670578,-503.10471872,0.00024383,7]